bitfinex/quotes_BTCUSD_20241223
["timestamp","ask_amount","ask_price","bid_price","bid_amount"]
[1734919199041,0.0001714,94479.0,94466.0,0.211714]
[1734919199509,0.0061714,94479.0,94462.0,0.211725]
[1734919199665,0.0001714,94479.0,94471.0,0.211704]
[1734919200065,0.005,94477.0,94471.0,0.211704]
[1734919200302,0.005,94477.0,94468.0,0.211711]
[1734919200855,0.005,94477.0,94467.0,0.09362501]
[1734919201302,0.0001714,94479.0,94467.0,0.09362501]
[1734919201484,0.211689,94478.0,94467.0,0.09362501]
[1734919201688,0.211689,94478.0,94463.0,0.3178654]
[1734919201927,0.211689,94478.0,94466.0,0.09468946]
[1734919202324,0.0001714,94479.0,94466.0,0.09468946]
[1734919202669,0.211689,94478.0,94466.0,0.09468946]
[1734919202882,0.212689,94478.0,94466.0,0.09468946]
[1734919203090,0.212689,94478.0,94463.0,0.17734801]
[1734919203295,0.211689,94478.0,94460.0,0.41654068]
[1734919203505,0.0001714,94479.0,94460.0,0.20481168]
[1734919203711,0.0001714,94479.0,94468.0,0.21171]
[1734919204006,0.0001714,94479.0,94474.0,0.211698]
[1734919204591,0.0011714,94479.0,94474.0,0.423396]
[1734919204771,0.0001714,94479.0,94474.0,0.423396]
[1734919205203,0.0001714,94479.0,94475.0,0.1013084]
[1734919205402,0.0001714,94479.0,94476.0,1.180121]
[1734919205604,0.0001714,94479.0,94478.0,0.311689]
[1734919205830,0.0001714,94479.0,94478.0,1.2692724]
[1734919206243,0.0001712,94509.0,94498.0,0.211643]
[1734919206489,0.211622,94508.0,94491.0,0.211658]
[1734919206691,0.211622,94508.0,94480.0,0.22922048]
[1734919206841,0.211622,94508.0,94481.0,0.1013084]
[1734919207045,0.0001712,94509.0,94490.0,0.21166]
[1734919207449,0.00070981,94509.0,94495.0,0.211649]
[1734919208491,0.00070981,94509.0,94501.0,0.211636]
[1734919208638,0.00670981,94509.0,94501.0,0.423273]
[1734919208845,0.00670981,94509.0,94507.0,0.211622]
[1734919209477,0.00070981,94509.0,94502.0,0.211635]
[1734919209687,0.00070981,94509.0,94499.0,0.12922048]
[1734919210100,0.00070981,94509.0,94498.0,0.02127228]
[1734919210101,0.1808084,94508.0,94495.0,0.0430706]
[1734919210303,0.211655,94494.0,94490.0,0.14051739]
[1734919210507,0.211658,94492.0,94490.0,0.14051739]
[1734919210732,0.1013084,94491.0,94490.0,0.14051739]
[1734919211139,0.1013084,94491.0,94485.0,0.1885522]
[1734919211140,0.211662,94490.0,94489.0,0.1885522]
[1734919211337,0.3129704,94490.0,94489.0,0.1885522]
[1734919211656,0.3129704,94490.0,94489.0,0.0605522]
[1734919211882,0.003,94492.0,94489.0,0.0605522]
[1734919212129,0.211658,94492.0,94489.0,0.0605522]
[1734919212359,0.003,94490.0,94480.0,0.12922048]
[1734919212758,0.0795,94493.0,94480.0,0.12922048]
[1734919212974,0.004,94492.0,94491.0,0.211658]
[1734919214636,0.211641,94500.0,94484.0,0.211676]
[1734919214791,0.1013084,94508.0,94483.0,0.02086756]
[1734919214971,0.21294774,94507.0,94485.0,0.211671]
[1734919215177,0.5245594,94507.0,94484.0,0.09450445]
[1734919215374,0.3129334,94507.0,94486.0,0.211671]
[1734919215575,0.0796,94514.0,94486.0,0.211671]
[1734919215903,0.00132265,94513.0,94486.0,0.211671]
[1734919216137,0.211622,94508.0,94485.0,0.1013084]
[1734919216406,0.211626,94506.0,94485.0,0.1013084]
[1734919216622,0.211626,94506.0,94475.0,0.40414008]
[1734919216623,0.12922048,94500.0,94480.0,0.10826113]
[1734919216919,0.211671,94486.0,94485.0,0.09441561]
[1734919217124,0.3890794,94486.0,94485.0,0.09441561]
[1734919217888,0.211723,94463.0,94462.0,0.23577596]
[1734919218154,0.211707,94470.0,94462.0,0.27947855]
[1734919218370,0.211707,94470.0,94462.0,0.23577596]
[1734919219263,0.211698,94475.0,94462.0,0.235938]
[1734919219513,0.001,94470.0,94463.0,8.57e-05]
[1734919219839,0.2117,94473.0,94463.0,8.57e-05]
[1734919219957,0.3130064,94475.0,94463.0,8.57e-05]
[1734919220232,0.211678,94483.0,94464.0,0.21172]
[1734919220469,0.004,94470.0,94464.0,0.42344]
[1734919220934,0.004,94470.0,94464.0,0.21172]
[1734919222152,0.00132303,94485.0,94471.0,0.211703]
[1734919222424,0.211658,94493.0,94471.0,0.423408]
[1734919222669,0.00132303,94490.0,94471.0,0.423408]
[1734919222894,0.004,94473.0,94471.0,0.211703]
[1734919223365,0.211658,94493.0,94473.0,0.211699]
[1734919223704,0.005,94485.0,94480.0,0.211684]
[1734919223912,0.211602,94518.0,94485.0,0.1]
[1734919224162,0.0762,94521.0,94487.0,0.1]
[1734919224163,0.211598,94519.0,94487.0,0.1]
[1734919224386,0.211622,94508.0,94488.0,0.3129734]
[1734919224622,0.211622,94508.0,94488.0,0.1013084]
[1734919224887,0.211622,94508.0,94489.0,0.211663]
[1734919225103,0.211622,94508.0,94490.0,0.211661]
[1734919225349,0.211612,94513.0,94496.0,0.211648]
[1734919225599,0.00132263,94512.0,94496.0,0.211648]
[1734919226305,0.211612,94513.0,94496.0,0.211648]
[1734919226543,0.00470981,94509.0,94496.0,0.211648]
[1734919226791,0.00070981,94509.0,94492.0,0.211658]
[1734919227046,0.00070981,94509.0,94496.0,0.211648]
[1734919227282,0.00470981,94509.0,94496.0,0.211648]
[1734919227611,0.00070981,94509.0,94496.0,0.211648]
[1734919228901,0.00070981,94509.0,94499.0,0.12922048]
[1734919229162,0.00470981,94509.0,94497.0,0.211646]
[1734919229453,0.00070981,94509.0,94503.0,0.211633]
[1734919229708,0.00070981,94509.0,94503.0,0.423266]
[1734919229980,0.00470981,94509.0,94503.0,0.423266]
[1734919230253,0.00070981,94509.0,94503.0,0.423266]
[1734919230487,0.00970981,94509.0,94508.0,0.211622]
[1734919230724,0.00070981,94509.0,94508.0,0.3129304]
[1734919230970,0.00070981,94509.0,94508.0,0.4129304]
[1734919231466,0.00070981,94509.0,94508.0,0.4359304]
[1734919231718,0.00070981,94509.0,94508.0,0.2243084]
[1734919232270,0.0001714,94528.0,94518.0,0.1]
[1734919232499,0.0001714,94528.0,94527.0,0.211579]
[1734919233682,0.0001714,94528.0,94519.0,0.4129054]
[1734919234141,0.0001714,94528.0,94525.0,0.211583]
[1734919234588,0.0001714,94528.0,94527.0,0.02089525]
[1734919235096,0.0001714,94528.0,94525.0,0.04261469]
[1734919235383,0.0001714,94528.0,94527.0,0.003]
[1734919235613,0.0001714,94528.0,94522.0,0.02142012]
[1734919235836,0.0001714,94528.0,94512.0,0.04393437]
[1734919236046,0.0001714,94528.0,94527.0,0.002]
[1734919236257,0.211581,94526.0,94514.0,0.02137353]
[1734919236486,0.211581,94526.0,94511.0,0.536]
[1734919236695,0.211581,94526.0,94509.0,0.09434015]
[1734919236919,0.1013084,94526.0,94509.0,0.09434015]
[1734919237159,0.1013084,94526.0,94494.0,0.09434015]
[1734919237160,0.211619,94510.0,94494.0,0.09434015]
[1734919237368,0.1013084,94525.0,94498.0,0.02156835]
[1734919237584,0.00132254,94524.0,94498.0,0.02156835]
[1734919237807,0.211617,94511.0,94498.0,0.02156835]
[1734919237990,0.211617,94511.0,94494.0,0.09434015]
[1734919238424,0.211617,94511.0,94495.0,0.02169541]
[1734919238627,0.21113037,94511.0,94495.0,0.02169541]
[1734919238834,0.21162,94509.0,94504.0,0.04231721]
[1734919239067,0.21113037,94511.0,94504.0,0.04231721]
[1734919239483,0.21213037,94511.0,94508.0,0.00316204]
[1734919239712,0.21113037,94511.0,94508.0,0.00016204]
[1734919240161,0.001,94509.0,94508.0,0.00316204]
[1734919240386,0.1840084,94509.0,94508.0,0.00316204]
[1734919240810,0.2294084,94509.0,94508.0,0.00016204]
[1734919241022,0.211682,94482.0,94480.0,8.57e-05]
[1734919241239,0.293382,94482.0,94480.0,0.00062431]
[1734919241448,0.00132303,94481.0,94480.0,0.00062431]
[1734919241673,0.211689,94479.0,94475.0,0.108549]
[1734919241891,0.211691,94477.0,94475.0,0.10871104]
[1734919242074,0.10263155,94476.0,94475.0,0.00016204]
[1734919242317,0.10263168,94476.0,94475.0,0.00016204]
[1734919242803,0.25263168,94476.0,94475.0,0.00016204]
[1734919243014,0.3330084,94476.0,94475.0,0.00016204]
[1734919243236,0.29342,94464.0,94463.0,8.57e-05]
[1734919243460,0.7434704,94464.0,94463.0,0.0002478]
[1734919243682,0.7434704,94464.0,94430.0,0.18898674]
[1734919243683,0.211794,94431.0,94430.0,0.18898674]
[1734919243908,0.3131024,94431.0,94430.0,0.18914767]
[1734919244087,0.0817,94432.0,94430.0,0.18914767]
[1734919244324,0.211784,94436.0,94430.0,0.18914767]
[1734919244952,0.211788,94434.0,94430.0,0.00016093]
[1734919245166,0.211792,94432.0,94430.0,0.00016093]
[1734919245378,0.00132376,94431.0,94430.0,0.00016093]
[1734919245807,0.1013084,94431.0,94430.0,0.00016093]
[1734919246024,0.10263236,94431.0,94430.0,0.00016093]
[1734919246256,0.1013084,94431.0,94430.0,0.00016093]
[1734919246501,0.10263237,94431.0,94430.0,0.00016093]
[1734919246672,0.211797,94430.0,94409.0,0.04344506]
[1734919246910,0.211812,94424.0,94403.0,0.211857]
[1734919247312,0.3131094,94429.0,94403.0,0.211857]
[1734919247665,0.211815,94422.0,94403.0,0.25483291]
[1734919248269,0.211822,94419.0,94403.0,0.04297591]
[1734919248471,0.211822,94419.0,94402.0,0.00551965]
[1734919248472,0.10263235,94418.0,94402.0,0.00551965]
[1734919248677,0.211841,94411.0,94402.0,0.00551965]
[1734919248876,0.211844,94409.0,94402.0,0.00551965]
[1734919249101,0.00132409,94408.0,94385.0,8.55e-05]
[1734919249317,0.211866,94399.0,94398.0,0.00552141]
[1734919249633,0.211866,94399.0,94385.0,8.55e-05]
[1734919249832,0.211866,94399.0,94389.0,0.00552155]
[1734919250041,0.423733,94399.0,94389.0,0.00552155]
[1734919250237,0.1013084,94407.0,94389.0,0.00552155]
[1734919250482,0.211868,94398.0,94389.0,0.00552155]
[1734919251628,0.211853,94405.0,94389.0,0.00552155]
[1734919251833,0.211857,94403.0,94389.0,0.00552155]
[1734919252040,0.211862,94401.0,94389.0,0.00552155]
[1734919252353,0.211866,94399.0,94389.0,0.00552155]
[1734919252531,0.0011614,94407.0,94390.0,0.211886]
[1734919252681,0.0011614,94407.0,94391.0,0.211884]
[1734919252881,0.0001614,94407.0,94391.0,0.211884]
[1734919253321,0.1013084,94406.0,94389.0,0.00552155]
[1734919253525,0.0001614,94407.0,94390.0,0.211886]
[1734919253882,0.0011614,94407.0,94403.0,0.211856]
[1734919254142,0.0001614,94407.0,94404.0,0.1013084]
[1734919254370,0.0001614,94407.0,94405.0,0.211853]
[1734919254574,0.0001614,94407.0,94406.0,0.1013084]
[1734919254776,0.0001614,94407.0,94406.0,0.12267776]
[1734919256946,0.0011614,94407.0,94406.0,0.12267776]
[1734919257142,0.0001614,94407.0,94406.0,0.12267776]
[1734919257548,0.0091614,94407.0,94406.0,0.12267776]
[1734919257941,0.0001614,94407.0,94405.0,0.23310909]
[1734919258056,0.0031614,94407.0,94405.0,0.23310909]
[1734919258256,0.0031614,94407.0,94405.0,0.211853]
[1734919258457,0.0031614,94407.0,94405.0,0.25538594]
[1734919258672,0.0031614,94407.0,94405.0,0.04353294]
[1734919258877,0.0031614,94407.0,94399.0,0.15]
[1734919258878,0.0031614,94407.0,94400.0,0.211864]
[1734919259104,0.0031614,94407.0,94401.0,0.15]
[1734919259302,0.0031614,94407.0,94400.0,0.211864]
[1734919259513,0.0031614,94407.0,94398.0,0.04410149]
[1734919259710,0.0001614,94407.0,94395.0,0.02093798]
[1734919259958,0.0001614,94407.0,94396.0,0.15]
[1734919260284,0.0011614,94407.0,94396.0,0.15]
[1734919260490,0.0001614,94407.0,94396.0,0.15]
[1734919260704,0.0091614,94407.0,94401.0,0.211859]
[1734919260894,0.0091614,94407.0,94401.0,0.5250284]
[1734919261053,0.0001614,94407.0,94401.0,0.5250284]
[1734919261276,0.0091614,94407.0,94403.0,0.423714]
[1734919261479,0.0091614,94407.0,94404.0,0.1013084]
[1734919261939,0.0091614,94407.0,94406.0,0.8071]
[1734919262142,0.0001712,94422.0,94418.0,0.423648]
[1734919262343,0.0001712,94422.0,94420.0,0.211819]
[1734919262539,0.0001712,94422.0,94408.0,0.211846]
[1734919262860,0.0001712,94422.0,94414.0,0.211831]
[1734919264146,0.0001712,94422.0,94407.0,0.408]
[1734919264355,0.292817,94421.0,94407.0,0.42876413]
[1734919264561,0.211833,94414.0,94407.0,0.408]
[1734919264773,0.423666,94414.0,94390.0,0.4055887]
[1734919264989,0.211837,94412.0,94392.0,0.211882]
[1734919265188,0.211837,94412.0,94390.0,0.44776065]
[1734919265413,0.211841,94410.0,94394.0,0.02090408]
[1734919265627,0.00132405,94409.0,94394.0,0.02090408]
[1734919266037,0.211836,94413.0,94395.0,0.211875]
[1734919266346,0.00132405,94412.0,94394.0,0.02090408]
[1734919266556,0.211839,94411.0,94396.0,0.211873]
[1734919266766,0.211844,94409.0,94396.0,0.211873]
[1734919267151,0.211844,94409.0,94407.0,0.001]
[1734919267352,0.211844,94409.0,94396.0,0.211873]
[1734919267598,0.211844,94409.0,94396.0,0.2119586]
[1734919268152,0.002,94411.0,94396.0,0.2119586]
[1734919268377,0.002,94411.0,94402.0,0.211857]
[1734919268580,0.260121,94420.0,94403.0,0.211857]
[1734919269008,0.00132395,94419.0,94403.0,0.211857]
[1734919269887,7.435e-05,94421.0,94409.0,0.1937037]
[1734919270103,7.435e-05,94421.0,94417.0,0.211825]
[1734919270307,7.435e-05,94421.0,94419.0,0.211821]
[1734919270515,7.435e-05,94421.0,94420.0,0.1013084]
[1734919270738,7.435e-05,94421.0,94420.0,0.4994484]
[1734919270949,7.435e-05,94421.0,94420.0,0.4804984]
[1734919271169,7.435e-05,94421.0,94420.0,0.2013084]
[1734919271417,0.00107435,94421.0,94420.0,0.2013084]
[1734919271619,0.00107435,94421.0,94420.0,0.3377094]
[1734919272027,0.288734,94458.0,94420.0,0.3377094]
[1734919272028,0.077,94458.0,94427.0,0.1]
[1734919272264,0.07707438,94458.0,94451.0,0.211747]
[1734919272964,0.1026317,94457.0,94429.0,0.408]
[1734919273278,0.211754,94450.0,94430.0,0.211795]
[1734919273461,0.211754,94450.0,94429.0,0.408]
[1734919273462,0.211768,94443.0,94429.0,0.408]
[1734919273859,0.07707438,94458.0,94417.0,0.15]
[1734919273860,0.211784,94436.0,94425.0,0.04233239]
[1734919274048,0.211788,94434.0,94405.0,0.211853]
[1734919274298,0.00132373,94433.0,94405.0,0.211853]
[1734919274479,0.0763,94435.0,94411.0,0.04259945]
[1734919274641,0.211797,94430.0,94405.0,0.211853]
[1734919274841,0.211801,94428.0,94411.0,0.211838]
[1734919275158,0.0763,94435.0,94418.0,0.423646]
[1734919275159,0.00132383,94427.0,94418.0,0.423646]
[1734919275368,0.22211176,94434.0,94418.0,0.211823]
[1734919275570,0.009,94434.0,94418.0,0.211823]
[1734919275715,0.009,94434.0,94414.0,0.211831]
[1734919276332,0.009,94434.0,94419.0,0.211821]
[1734919276532,0.009,94434.0,94411.0,0.00107435]
[1734919276738,0.0763,94435.0,94425.0,0.211806]
[1734919276939,0.0483,94453.0,94432.0,0.21179]
[1734919277138,0.0483,94453.0,94425.0,0.211806]
[1734919277139,0.211754,94450.0,94425.0,0.211806]
[1734919277352,0.31438599,94449.0,94426.0,0.211805]
[1734919277517,0.001,94434.0,94426.0,0.211805]
[1734919277892,0.211754,94449.0,94433.0,0.21179]
[1734919278101,0.0767,94452.0,94427.0,0.211803]
[1734919278283,0.00132348,94451.0,94439.0,0.211776]
[1734919278684,0.0767,94452.0,94440.0,0.1937037]
[1734919278892,0.00132337,94463.0,94440.0,0.1937037]
[1734919279096,0.0767,94464.0,94450.0,0.21175]
[1734919279292,0.211723,94463.0,94440.0,0.1937037]
[1734919279522,0.211723,94463.0,94447.0,0.211757]
[1734919279670,0.0001712,94452.0,94447.0,0.211757]
[1734919279881,0.00024556,94452.0,94447.0,0.211757]
[1734919280771,0.00024556,94452.0,94447.0,0.423515]
[1734919281158,0.00024556,94452.0,94449.0,0.211754]
[1734919281357,0.00024556,94452.0,94451.0,0.21175]
[1734919281614,0.00024556,94452.0,94451.0,0.4630584]
[1734919281813,0.00024556,94452.0,94451.0,0.3350584]
[1734919282020,0.00024556,94452.0,94451.0,0.4513084]
[1734919282215,0.00824556,94452.0,94451.0,0.4513084]
[1734919282579,0.00024556,94452.0,94451.0,0.4513084]
[1734919283012,0.00424556,94452.0,94451.0,0.4513084]
[1734919283243,0.00424556,94452.0,94451.0,0.6630584]
[1734919283901,0.0776,94500.0,94479.0,0.1937037]
[1734919284115,7.437e-05,94497.0,94495.0,0.21165]
[1734919284777,7.437e-05,94497.0,94492.0,0.211657]
[1734919284936,7.437e-05,94497.0,94493.0,0.1013084]
[1734919285154,7.437e-05,94497.0,94494.0,0.211653]
[1734919285551,7.437e-05,94497.0,94494.0,0.3129614]
[1734919285730,7.437e-05,94497.0,94496.0,0.361649]
[1734919285934,0.0001712,94517.0,94516.0,0.211604]
[1734919286136,0.0001712,94517.0,94516.0,0.33392381]
[1734919286328,0.00071117,94517.0,94516.0,0.33392381]
[1734919286529,0.00071117,94517.0,94516.0,0.12231981]
[1734919286940,0.00071117,94517.0,94516.0,0.1013084]
[1734919287143,0.00071117,94517.0,94506.0,0.15]
[1734919287355,0.00071117,94517.0,94510.0,0.15]
[1734919287608,0.00071117,94517.0,94510.0,0.2513084]
[1734919288124,0.00171117,94517.0,94516.0,0.005]
[1734919288327,0.00171117,94517.0,94510.0,0.2513084]
[1734919288328,0.00071117,94517.0,94510.0,0.2513084]
[1734919288750,0.00171117,94517.0,94511.0,0.42323]
[1734919288951,0.00171117,94517.0,94511.0,0.5245384]
[1734919289190,0.00071117,94517.0,94511.0,0.1013084]
[1734919289380,0.00071117,94517.0,94516.0,0.005]
[1734919289588,0.00171117,94517.0,94516.0,0.005]
[1734919290116,0.18054218,94517.0,94516.0,0.005]
[1734919290977,0.211604,94516.0,94493.0,0.25483829]
[1734919291182,0.211604,94516.0,94511.0,0.004]
[1734919291386,0.07791117,94517.0,94511.0,0.004]
[1734919291594,0.07691117,94517.0,94502.0,0.211635]
[1734919291806,0.00071117,94517.0,94509.0,0.211619]
[1734919292015,0.00571117,94517.0,94509.0,0.211619]
[1734919292444,0.00571117,94517.0,94503.0,0.3129414]
[1734919292867,0.002,94516.0,94510.0,0.211616]
[1734919293079,0.002,94516.0,94504.0,0.211631]
[1734919293503,0.002,94516.0,94504.0,0.23301481]
[1734919293723,0.002,94516.0,94512.0,0.211612]
[1734919293919,0.002,94516.0,94514.0,0.211608]
[1734919294128,0.00071117,94517.0,94515.0,0.1013084]
[1734919294333,0.00071117,94517.0,94516.0,0.211604]
[1734919294533,0.00071117,94517.0,94516.0,0.3129124]
[1734919295171,0.00071117,94517.0,94516.0,0.4629124]
[1734919295596,0.00071117,94517.0,94516.0,0.4659124]
[1734919295597,0.00171117,94517.0,94516.0,0.4659124]
[1734919296009,0.00171117,94517.0,94516.0,0.5659124]
[1734919296246,0.00171117,94517.0,94516.0,0.6659124]
[1734919296461,0.00171117,94517.0,94516.0,2.0500274]
[1734919296672,0.00171117,94517.0,94516.0,1.4593444]
[1734919296877,0.00171117,94517.0,94516.0,1.4488604]
[1734919297729,0.00071117,94517.0,94516.0,1.4458604]
[1734919298156,0.00071117,94517.0,94516.0,1.4688604]
[1734919298382,0.00171117,94517.0,94516.0,1.4778604]
[1734919298596,0.21071048,94554.0,94526.0,0.408]
[1734919298804,0.42223048,94554.0,94535.0,0.211561]
[1734919299012,0.211549,94541.0,94527.0,0.15]
[1734919299216,0.211549,94541.0,94526.0,0.408]
[1734919299421,0.211561,94535.0,94526.0,0.408]
[1734919299675,0.1937037,94550.0,94526.0,0.408]
[1734919299896,0.211569,94532.0,94526.0,0.408]
[1734919300316,0.3128394,94549.0,94527.0,0.211579]
[1734919300459,0.211546,94543.0,94527.0,0.211579]
[1734919301233,0.211546,94543.0,94527.0,0.212579]
[1734919301234,0.001,94541.0,94527.0,0.212579]
[1734919301457,0.001,94541.0,94527.0,0.5254664]
[1734919301655,0.001,94541.0,94527.0,0.1013084]
[1734919302020,0.21155,94540.0,94527.0,0.001]
[1734919302227,0.21152,94554.0,94527.0,0.001]
[1734919302228,0.294314,94557.0,94530.0,0.1937037]
[1734919302339,0.294314,94557.0,94538.0,0.211555]
[1734919302743,0.294314,94557.0,94535.0,0.02117238]
[1734919302953,0.211519,94554.0,94535.0,0.02117238]
[1734919303158,0.211519,94554.0,94536.0,0.211559]
[1734919303359,0.211519,94554.0,94535.0,0.02117238]
[1734919303859,0.21185135,94555.0,94536.0,0.3128674]
[1734919304066,0.00033335,94555.0,94542.0,0.211545]
[1734919304505,0.0001712,94543.0,94536.0,0.3128674]
[1734919305134,0.0001712,94543.0,94536.0,0.1013084]
[1734919305345,0.0001712,94543.0,94525.0,0.408]
[1734919305346,0.2117152,94543.0,94530.0,0.15]
[1734919305567,0.2117152,94543.0,94542.0,0.001]
[1734919305801,0.2117152,94543.0,94530.0,0.12300813]
[1734919306133,0.2127152,94543.0,94536.0,0.001]
[1734919306352,0.0011712,94543.0,94536.0,0.001]
[1734919306546,0.0011712,94543.0,94537.0,0.211557]
[1734919307436,0.0001712,94543.0,94537.0,0.211557]
[1734919307767,0.0001712,94543.0,94542.0,0.001]
[1734919307970,0.0001712,94543.0,94537.0,0.211557]
[1734919308383,0.0001712,94543.0,94537.0,0.212557]
[1734919308770,0.0001712,94543.0,94539.0,0.211552]
[1734919308982,0.0001712,94543.0,94540.0,0.1013084]
[1734919309181,0.0001712,94543.0,94542.0,0.001]
[1734919309390,0.0001712,94543.0,94542.0,0.1013084]
[1734919310268,0.0001712,94543.0,94542.0,0.2513084]
[1734919311101,0.00033335,94555.0,94554.0,0.211519]
[1734919311315,0.00033335,94555.0,94554.0,0.4628274]
[1734919311786,0.000171,94573.0,94564.0,0.211496]
[1734919311996,0.000171,94573.0,94570.0,0.211483]
[1734919312255,0.000171,94573.0,94570.0,0.7497384]
[1734919312470,0.000171,94573.0,94570.0,0.95386831]
[1734919312687,0.000171,94573.0,94570.0,1.00712959]
[1734919313118,0.0001314,94576.0,94575.0,0.1]
[1734919313328,0.000131,94584.0,94578.0,0.1]
[1734919313547,0.00029286,94584.0,94583.0,0.361454]
[1734919313757,0.00029286,94584.0,94583.0,0.4627624]
[1734919313961,0.00029286,94584.0,94575.0,0.1]
[1734919313962,0.00029286,94584.0,94570.0,0.02086791]
[1734919314173,0.00029286,94584.0,94573.0,0.1013084]
[1734919314820,0.0772,94583.0,94572.0,0.408]
[1734919315023,0.0772,94583.0,94558.0,0.211508]
[1734919315228,0.422916,94581.0,94560.0,0.211505]
[1734919315437,0.0772,94583.0,94561.0,0.1013084]
[1734919315640,0.211473,94575.0,94561.0,0.1013084]
[1734919315849,0.211473,94575.0,94561.0,0.12201805]
[1734919316301,0.422946,94575.0,94561.0,0.02070965]
[1734919316509,0.211456,94582.0,94545.0,0.361539]
[1734919316718,0.211498,94564.0,94547.0,0.15]
[1734919316920,0.211498,94564.0,94551.0,0.02088322]
[1734919317955,8.55e-05,94571.0,94551.0,0.02088322]
[1734919318342,0.001,94564.0,94551.0,0.02088322]
[1734919319132,8.55e-05,94571.0,94551.0,0.02088322]
[1734919319331,0.211485,94569.0,94551.0,0.23240822]
[1734919319534,8.55e-05,94571.0,94552.0,0.1013084]
[1734919320370,8.55e-05,94571.0,94562.0,0.211501]
[1734919320576,8.55e-05,94571.0,94563.0,0.1013084]
[1734919321159,0.001,94564.0,94563.0,0.1013084]
[1734919321322,0.00017541,94571.0,94564.0,0.422992]
[1734919321526,0.00017541,94571.0,94565.0,0.1013084]
[1734919321730,0.00017541,94571.0,94566.0,0.211492]
[1734919321930,0.00017541,94571.0,94569.0,0.15]
[1734919322141,0.00017541,94571.0,94570.0,0.1013084]
[1734919322333,0.00017541,94571.0,94570.0,0.4627914]
[1734919322536,0.00017541,94571.0,94570.0,0.6020724]
[1734919323634,0.00017541,94571.0,94570.0,1.1307773]
[1734919324029,0.0001714,94588.0,94579.0,0.1]
[1734919324251,0.0001714,94588.0,94583.0,0.361454]
[1734919324400,0.0001714,94588.0,94583.0,0.4627624]
[1734919325701,0.00129286,94584.0,94583.0,0.4697624]
[1734919326575,0.00129286,94584.0,94583.0,0.9777624]
[1734919326783,0.0001714,94588.0,94586.0,0.361447]
[1734919326998,0.0001314,94588.0,94587.0,0.1]
[1734919327209,8e-05,94604.0,94600.0,0.1]
[1734919327412,8e-05,94604.0,94602.0,0.361412]
[1734919327537,8e-05,94604.0,94603.0,0.4760444]
[1734919327744,8e-05,94604.0,94603.0,0.7895274]
[1734919327970,8e-05,94604.0,94603.0,0.4425854]
[1734919328314,8e-05,94604.0,94603.0,2.1308826]
[1734919328436,0.00108,94604.0,94603.0,1.1947686]
[1734919328637,8e-05,94604.0,94603.0,1.1947686]
[1734919328833,8e-05,94604.0,94603.0,1.5187376]
[1734919329035,0.00108,94604.0,94603.0,1.7227376]
[1734919329240,0.00108,94604.0,94603.0,1.75424188]
[1734919329455,0.0766,94646.0,94621.0,0.15]
[1734919329650,0.00071077,94638.0,94628.0,0.1937037]
[1734919330013,0.00071077,94638.0,94637.0,0.211333]
[1734919330204,0.00071077,94638.0,94637.0,0.3126414]
[1734919330427,0.00071077,94638.0,94637.0,0.36782767]
[1734919330850,0.00071077,94638.0,94637.0,0.7282551]
[1734919331088,0.00071077,94638.0,94637.0,0.7602762]
[1734919331360,0.00071077,94638.0,94637.0,0.8602762]
[1734919331611,0.006,94638.0,94637.0,1.2692762]
[1734919331867,8.55e-05,94670.0,94662.0,0.361278]
[1734919332129,0.00882093,94663.0,94662.0,0.4625864]
[1734919332393,0.00882093,94663.0,94662.0,0.8705864]
[1734919333614,8.55e-05,94670.0,94665.0,0.1]
[1734919333862,8.55e-05,94670.0,94665.0,0.46389634]
[1734919334098,8.55e-05,94670.0,94665.0,0.3683744]
[1734919334333,8.55e-05,94670.0,94665.0,0.49853488]
[1734919334550,8.55e-05,94670.0,94665.0,0.39853488]
[1734919334991,8.55e-05,94699.0,94696.0,0.211201]
[1734919335301,0.0002472,94699.0,94697.0,0.1013084]
[1734919335532,0.0002472,94699.0,94687.0,0.15]
[1734919335759,0.211197,94698.0,94680.0,0.408]
[1734919336015,0.211197,94698.0,94682.0,0.15]
[1734919336226,0.211197,94698.0,94683.0,0.02062626]
[1734919336227,0.422395,94698.0,94683.0,0.02062626]
[1734919336725,0.422395,94698.0,94682.0,0.1013084]
[1734919337192,0.0002472,94699.0,94685.0,0.211226]
[1734919337482,0.0002472,94699.0,94686.0,0.1013084]
[1734919338141,0.0002472,94699.0,94697.0,0.211198]
[1734919338357,0.0002472,94699.0,94698.0,0.1013084]
[1734919338582,0.0002472,94699.0,94698.0,0.57738017]
[1734919339662,0.0002472,94699.0,94698.0,0.74846526]
[1734919340074,0.0002472,94699.0,94698.0,0.82081049]
[1734919340278,0.0002472,94699.0,94698.0,0.68039349]
[1734919340982,0.0002472,94699.0,94698.0,0.72054936]
[1734919341410,0.0002472,94699.0,94698.0,0.77962113]
[1734919342080,0.0002472,94699.0,94698.0,0.75392953]
[1734919343193,0.0002472,94699.0,94698.0,0.03115587]
[1734919343194,0.0761472,94699.0,94698.0,0.03115587]
[1734919343415,0.0761472,94699.0,94686.0,0.211222]
[1734919343637,0.0761472,94699.0,94697.0,0.03080112]
[1734919343850,0.0761472,94699.0,94692.0,0.21121]
[1734919344306,0.00575133,94699.0,94698.0,0.001]
[1734919344525,0.0814,94714.0,94713.0,0.211164]
[1734919344730,0.0814,94732.0,94713.0,0.1013084]
[1734919344958,0.211124,94731.0,94713.0,0.1013084]
[1734919345155,0.0814,94732.0,94715.0,0.211159]
[1734919345657,0.211124,94731.0,94715.0,0.211159]
[1734919346032,0.21114,94724.0,94707.0,0.15]
[1734919346293,0.21114,94724.0,94710.0,0.02105678]
[1734919346507,0.0814,94732.0,94707.0,0.15]
[1734919346723,0.15,94730.0,94700.0,0.40319395]
[1734919346940,0.211167,94712.0,94700.0,0.3823084]
[1734919347166,0.211167,94712.0,94698.0,0.03108582]
[1734919347167,0.21118,94706.0,94698.0,0.03108582]
[1734919347376,0.0822,94705.0,94698.0,0.03108582]
[1734919347557,0.0822,94705.0,94690.0,0.1937037]
[1734919347773,0.211185,94704.0,94690.0,0.1937037]
[1734919347958,0.0822,94705.0,94686.0,0.03131586]
[1734919348178,0.211213,94692.0,94686.0,0.03131586]
[1734919348391,0.211213,94692.0,94665.0,0.1]
[1734919348392,0.082,94690.0,94655.0,0.211293]
[1734919348595,0.10262856,94689.0,94659.0,0.042252]
[1734919348796,0.211254,94673.0,94656.0,0.1013084]